[Event "26th Abu Dhabi Master 2019"]
[Site "Abu Dhabi"]
[Date "2019.08.07"]
[Round "6.6"]
[White "Yilmaz, Mustafa"]
[Black "Aleksandrov, Aleksej"]
[Result "1/2-1/2"]
[ECO "D38"]
[WhiteElo "2618"]
[BlackElo "2571"]
[Annotator "ChessBase"]
[PlyCount "127"]
[EventDate "2019.08.02"]
[EventType "swiss"]
[EventCountry "UAE"]
[SourceTitle "playchess.com"]
[Source "ChessBase"]
[SourceQuality "1"]
[TimeControl "5400+30"]

1. d4 {[%emt 0:02:33]} Nf6 {[%emt 0:00:00]} 2. c4 {[%emt 0:00:05]} e6 {[%emt 0:00:00]} 3. Nf3 {[%emt 0:00:14]} d5 {[%emt 0:00:00]} 4. Nc3 {[%emt 0:00:05]} Bb4 {[%emt 0:00:00]} 5. cxd5 {[%emt 0:00:41]} exd5 {[%emt 0:00:05]} 6. Bg5 {[%emt 0:00:07]} h6 {[%emt 0:00:29]} 7. Bh4 {[%emt 0:00:05]} Bf5 {[%emt 0:00:41]} 8. e3 {[%emt 0:03:34]} Nbd7 {[%emt 0:06:50]} 9. Be2 {[%emt 0:04:51]} c6 {[%emt 0:00:36]} 10. O-O {[%emt 0:04:12]} Bd6 {[%emt 0:04:43]} 11. Bg3 {[%emt 0:08:21]} Bxg3 {[%emt 0:07:12]} 12. hxg3 {[%emt 0:00:05]} Qe7 {[%emt 0:01:38]} 13. Bd3 {[%emt 0:02:20]} Bxd3 {[%emt 0:00:59]} 14. Qxd3 {[%emt 0:00:02]} O-O {[%emt 0:00:12]} 15. Nd2 {[%emt 0:02:05]} Rfe8 {[%emt 0:10:02]} 16. Rae1 {[%emt 0:02:39]} Qd6 {[%emt 0:05:56]} 17. e4 {[%emt 0:09:53]} dxe4 {[%emt 0:00:06]} 18. Ndxe4 {[%emt 0:00:06]} Nxe4 {[%emt 0:01:56]} 19. Nxe4 {[%emt 0:02:19]} Qd5 {[%emt 0:00:36]} 20. Nc3 {[%emt 0:03:04]} Qh5 {[%emt 0:00:27]} 21. Qf3 {[%emt 0:01:45]} Qxf3 {[%emt 0:06:37]} 22. gxf3 {[%emt 0:01:02]} Nf6 {[%emt 0:00:09]} 23. Rxe8+ {[%emt 0:05:12]} Rxe8 {[%emt 0:03:35]} 24. Rd1 {[%emt 0:00:56]} Kf8 {[%emt 0:03:41]} 25. Kf1 {[%emt 0:00:58]} h5 {[%emt 0:00:13]} 26. f4 {[%emt 0:02:46]} g6 {[%emt 0:03:23]} 27. d5 {[%emt 0:09:32]} cxd5 {[%emt 0:01:01]} 28. Nxd5 {[%emt 0:00:04]} Rd8 {[%emt 0:00:11]} 29. Nc3 {[%emt 0:00:12]} Rxd1+ {[%emt 0:00:50]} 30. Nxd1 {[%emt 0:00:02]} Nd5 {[%emt 0:02:03]} 31. Ke2 {[%emt 0:06:28]} Ke7 {[%emt 0:00:10]} 32. Kf3 {[%emt 0:06:55]} Kd6 {[%emt 0:04:33]} 33. Ke4 {[%emt 0:01:56]} f5+ {[%emt 0:06:01]} 34. Kd4 {[%emt 0:00:15]} h4 {[%emt 0:00:09]} 35. gxh4 {[%emt 0:01:08]} Nxf4 {[%emt 0:00:07]} 36. Nc3 {[%emt 0:05:48]} a6 {[%emt 0:04:08]} 37. Ke3 {[%emt 0:01:37]} Ke5 {[%emt 0:00:21]} 38. Na4 {[%emt 0:00:47]} Nd5+ {[%emt 0:06:23]} 39. Kd3 {[%emt 0:06:48]} Nf4+ {[%emt 0:09:39]} 40. Ke3 {[%emt 0:00:01]} Ne6 {[%emt 0:00:10]} 41. Nb6 {[%emt 0:00:50]} f4+ {[%emt 0:00:35]} 42. Kd3 {[%emt 0:02:37]} Nc5+ {[%emt 0:00:39]} 43. Ke2 {[%emt 0:00:09]} Ke4 {[%emt 0:01:03]} 44. f3+ {[%emt 0:02:20]} Kd4 {[%emt 0:02:08]} 45. Nc8 {[%emt 0:00:01]} Nd3 {[%emt 0:00:58]} 46. Ne7 {[%emt 0:01:35]} Ne5 {[%emt 0:00:15]} 47. Ng8 {[%emt 0:00:35]} a5 {[%emt 0:05:46]} 48. Nf6 {[%emt 0:00:21]} a4 {[%emt 0:01:21]} 49. h5 {[%emt 0:01:11]} gxh5 {[%emt 0:00:04]} 50. Nxh5 {[%emt 0:00:03]} Nd3 {[%emt 0:00:25]} 51. Kd2 {[%emt 0:00:36]} b5 {[%emt 0:00:54]} 52. Ng7 {[%emt 0:01:24]} Nxb2 {[%emt 0:00:44]} 53. Ne6+ {[%emt 0:00:09]} Ke5 {[%emt 0:00:08]} 54. Nc7 {[%emt 0:00:11]} b4 {[%emt 0:01:56]} 55. Na6 {[%emt 0:00:01]} Nc4+ {[%emt 0:00:09]} 56. Kc2 {[%emt 0:01:02]} Ne3+ {[%emt 0:00:15]} 57. Kd3 {[%emt 0:00:08]} Nd5 {[%emt 0:01:19]} 58. Nc5 {[%emt 0:00:14]} b3 {[%emt 0:00:37]} 59. axb3 {[%emt 0:00:46]} a3 {[%emt 0:00:08]} 60. b4 {[%emt 0:01:04]} Nxb4+ {[%emt 0:00:10]} 61. Kc3 {[%emt 0:00:12]} a2 {[%emt 0:00:43]} 62. Nb3 {[%emt 0:00:56]} Nc6 {[%emt 0:01:32]} 63. Kb2 {[%emt 0:00:06]} Kd5 {[%emt 0:00:13]} 64. Nc1 {[%emt 0:01:23]} 1/2-1/2

[Event "26th Abu Dhabi Master 2019"]
[Site "Abu Dhabi"]
[Date "2019.08.07"]
[Round "6.9"]
[White "Sanal, Vahap"]
[Black "Esipenko, Andrey"]
[Result "0-1"]
[ECO "A28"]
[WhiteElo "2520"]
[BlackElo "2621"]
[Annotator "ChessBase"]
[PlyCount "66"]
[EventDate "2019.08.02"]
[EventType "swiss"]
[EventCountry "UAE"]
[SourceTitle "playchess.com"]
[Source "ChessBase"]
[SourceQuality "1"]
[TimeControl "5400+30"]

1. c4 {[%emt 0:00:38]} e5 {[%emt 0:02:29]} 2. Nc3 {[%emt 0:02:54]} Nf6 {[%emt 0:00:19]} 3. Nf3 {[%emt 0:00:26]} Nc6 {[%emt 0:00:12]} 4. e3 {[%emt 0:00:10]} Bb4 {[%emt 0:00:09]} 5. Qc2 {[%emt 0:00:12]} Bxc3 {[%emt 0:00:09]} 6. bxc3 {[%emt 0:00:07]} d6 {[%emt 0:01:04]} 7. e4 {[%emt 0:00:11]} O-O {[%emt 0:00:33]} 8. g3 {[%emt 0:00:09]} a6 {[%emt 0:01:39]} 9. a4 {[%emt 0:06:17]} Nd7 {[%emt 0:00:50]} 10. Bg2 {[%emt 0:05:11]} Nc5 {[%emt 0:02:03]} 11. Nh4 {[%emt 0:00:49]} Na5 {[%emt 0:00:12]} 12. d3 {[%emt 0:10:40]} Nab3 {[%emt 0:17:03]} 13. Rb1 {[%emt 0:00:14]} Nxc1 {[%emt 0:00:46]} 14. Rxc1 {[%emt 0:00:09]} Qf6 {[%emt 0:04:47]} 15. O-O {[%emt 0:03:40]} g5 {[%emt 0:00:34]} 16. Nf3 {[%emt 0:00:26]} Bg4 {[%emt 0:00:50]} 17. Ne1 {[%emt 0:00:50]} a5 {[%emt 0:02:48]} 18. f4 {[%emt 0:08:27]} gxf4 {[%emt 0:02:19]} 19. gxf4 {[%emt 0:03:26]} exf4 {[%emt 0:00:56]} 20. d4 {[%emt 0:11:17]} Ne6 {[%emt 0:00:28]} 21. Qd2 {[%emt 0:06:20]} Rae8 {[%emt 0:02:57]} 22. Rb1 {[%emt 0:02:39]} b6 {[%emt 0:02:29]} 23. h3 {[%emt 0:05:32]} Bh5 {[%emt 0:00:23]} 24. Rb5 {[%emt 0:00:42]} Qg6 {[%emt 0:07:02]} 25. Rf5 {[%emt 0:01:42]} Qh6 {[%emt 0:00:48]} 26. Rb5 {[%emt 0:08:45]} Bg6 {[%emt 0:05:23]} 27. Kh1 {[%emt 0:00:47]} Kh8 {[%emt 0:02:44]} 28. e5 {[%emt 0:06:33]} c6 {[%emt 0:07:00]} 29. Rxb6 {[%emt 0:00:40]} dxe5 {[%emt 0:00:09]} 30. dxe5 {[%emt 0:00:43]} Bf5 {[%emt 0:00:39]} 31. Kh2 {[%emt 0:04:11]} Rg8 {[%emt 0:01:09]} 32. Nf3 {[%emt 0:03:45]} Rxg2+ {[%emt 0:01:15]} 33. Kxg2 {[%emt 0:00:50]} Bxh3+ {[%emt 0:00:34]} 0-1

[Event "26th Abu Dhabi Master 2019"]
[Site "Abu Dhabi"]
[Date "2019.08.07"]
[Round "6.10"]
[White "Kuybokarov, Temur"]
[Black "Bartel, Mateusz"]
[Result "0-1"]
[ECO "D52"]
[WhiteElo "2511"]
[BlackElo "2600"]
[Annotator "ChessBase"]
[PlyCount "88"]
[EventDate "2019.08.02"]
[EventType "swiss"]
[EventCountry "UAE"]
[SourceTitle "playchess.com"]
[Source "ChessBase"]
[SourceQuality "1"]
[TimeControl "5400+30"]

1. d4 {[%emt 0:00:00]} d5 {[%emt 0:00:00]} 2. c4 {[%emt 0:00:00]} c6 {[%emt 0:00:00]} 3. Nc3 {[%emt 0:00:04]} Nf6 {[%emt 0:00:00]} 4. Nf3 {[%emt 0:00:18]} e6 {[%emt 0:00:00]} 5. Bg5 {[%emt 0:00:16]} Nbd7 {[%emt 0:00:04]} 6. e3 {[%emt 0:00:55]} h6 {[%emt 0:00:11]} 7. Bh4 {[%emt 0:00:21]} g5 {[%emt 0:00:09]} 8. Bg3 {[%emt 0:00:15]} Nh5 {[%emt 0:00:03]} 9. Qc2 {[%emt 0:00:18]} Nxg3 {[%emt 0:00:29]} 10. hxg3 {[%emt 0:00:11]} Bg7 {[%emt 0:00:05]} 11. O-O-O {[%emt 0:00:18]} Qe7 {[%emt 0:09:40]} 12. Kb1 {[%emt 0:00:19]} dxc4 {[%emt 0:11:30]} 13. Bxc4 {[%emt 0:00:57]} Nb6 {[%emt 0:00:06]} 14. Bb3 {[%emt 0:16:06]} Bd7 {[%emt 0:15:30]} 15. Ne4 {[%emt 0:03:55]} O-O-O {[%emt 0:00:04]} 16. Qc5 {[%emt 0:07:21]} Qf8 {[%emt 0:00:39]} 17. Qa5 {[%emt 0:06:13]} Kb8 {[%emt 0:00:48]} 18. Ne5 {[%emt 0:08:13]} Be8 {[%emt 0:10:04]} 19. f4 {[%emt 0:09:02]} Qe7 {[%emt 0:07:28]} 20. Qc5 {[%emt 0:04:47]} Qc7 {[%emt 0:03:05]} 21. Qc1 {[%emt 0:00:15]} Nd5 {[%emt 0:05:03]} 22. Nc5 {[%emt 0:00:28]} Qe7 {[%emt 0:00:09]} 23. e4 {[%emt 0:03:47]} Nc7 {[%emt 0:05:08]} 24. Bc4 {[%emt 0:04:59]} f6 {[%emt 0:02:04]} 25. Nf3 {[%emt 0:02:10]} Bg6 {[%emt 0:07:32]} 26. Rhe1 {[%emt 0:00:09]} e5 {[%emt 0:04:26]} 27. f5 {[%emt 0:01:14]} Bh5 {[%emt 0:02:46]} 28. Qe3 {[%emt 0:01:57]} exd4 {[%emt 0:00:53]} 29. Rxd4 {[%emt 0:02:17]} Rxd4 {[%emt 0:00:02]} 30. Qxd4 {[%emt 0:00:15]} Rd8 {[%emt 0:00:04]} 31. Qe3 {[%emt 0:00:46]} Bf8 {[%emt 0:01:49]} 32. Nb3 {[%emt 0:01:32]} Qb4 {[%emt 0:02:05]} 33. Rc1 {[%emt 0:00:56]} Bd6 {[%emt 0:00:19]} 34. a3 {[%emt 0:01:47]} Qb6 {[%emt 0:01:06]} 35. Qc3 {[%emt 0:03:20]} Bxf3 {[%emt 0:00:27]} 36. Qxf3 {[%emt 0:00:51]} Be5 {[%emt 0:00:12]} 37. Rd1 {[%emt 0:02:08]} Ne8 {[%emt 0:04:44]} 38. Rxd8+ {[%emt 0:05:39]} Qxd8 {[%emt 0:00:07]} 39. Be6 {[%emt 0:01:28]} Qb6 {[%emt 0:00:25]} 40. Qd3 {[%emt 0:03:00]} Nd6 {[%emt 0:00:17]} 41. Qc2 {[%emt 0:00:23]} Qe3 {[%emt 0:02:00]} 42. Nd2 {[%emt 0:05:07]} Qg1+ {[%emt 0:01:01]} 43. Ka2 {[%emt 0:03:32]} Qxg2 {[%emt 0:00:13]} 44. g4 {[%emt 0:01:29]} Bf4 {[%emt 0:02:02]} 0-1

[Event "26th Abu Dhabi Master 2019"]
[Site "Abu Dhabi"]
[Date "2019.08.07"]
[Round "6.11"]
[White "Assaubayeva, Bibisara"]
[Black "Aravindh, Chithambaram VR."]
[Result "0-1"]
[ECO "A33"]
[WhiteElo "2375"]
[BlackElo "2600"]
[Annotator "ChessBase"]
[PlyCount "92"]
[EventDate "2019.08.02"]
[EventType "swiss"]
[EventCountry "UAE"]
[SourceTitle "playchess.com"]
[Source "ChessBase"]
[SourceQuality "1"]
[TimeControl "5400+30"]

1. d4 {[%emt 0:00:00]} e6 {[%emt 0:00:00]} 2. c4 {[%emt 0:00:38]} Nf6 {[%emt 0:00:11]} 3. Nf3 {[%emt 0:00:22]} c5 {[%emt 0:00:53]} 4. Nc3 {[%emt 0:05:04]} cxd4 {[%emt 0:00:56]} 5. Nxd4 {[%emt 0:00:08]} Nc6 {[%emt 0:00:06]} 6. g3 {[%emt 0:00:12]} Qb6 {[%emt 0:01:19]} 7. Ndb5 {[%emt 0:01:16]} Ne5 {[%emt 0:01:03]} 8. Bg2 {[%emt 0:01:23]} a6 {[%emt 0:15:13]} 9. Na4 {[%emt 0:00:18]} Qa5+ {[%emt 0:04:03]} 10. Nbc3 {[%emt 0:00:09]} Nxc4 {[%emt 0:05:13]} 11. O-O {[%emt 0:00:08]} Bb4 {[%emt 0:04:44]} 12. a3 {[%emt 0:05:58]} Bxc3 {[%emt 0:02:22]} 13. Nxc3 {[%emt 0:00:18]} O-O {[%emt 0:03:12]} 14. e4 {[%emt 0:04:15]} d6 {[%emt 0:07:57]} 15. Qe2 {[%emt 0:04:36]} Ne5 {[%emt 0:01:21]} 16. f4 {[%emt 0:04:45]} Nc6 {[%emt 0:00:32]} 17. Be3 {[%emt 0:03:59]} e5 {[%emt 0:01:55]} 18. b4 {[%emt 0:04:35]} Qd8 {[%emt 0:03:51]} 19. f5 {[%emt 0:04:10]} Nd4 {[%emt 0:00:26]} 20. Qd3 {[%emt 0:06:45]} Bd7 {[%emt 0:03:14]} 21. Bxd4 {[%emt 0:02:46]} exd4 {[%emt 0:00:06]} 22. Qxd4 {[%emt 0:00:09]} Rc8 {[%emt 0:01:27]} 23. Rad1 {[%emt 0:04:30]} Re8 {[%emt 0:05:39]} 24. Nd5 {[%emt 0:11:26]} Nxd5 {[%emt 0:08:10]} 25. Qxd5 {[%emt 0:00:04]} Rc6 {[%emt 0:02:05]} 26. Qd4 {[%emt 0:04:19]} Re5 {[%emt 0:01:12]} 27. Rd2 {[%emt 0:04:10]} Kf8 {[%emt 0:01:37]} 28. Rfd1 {[%emt 0:02:31]} Ke7 {[%emt 0:02:55]} 29. Qf2 {[%emt 0:01:44]} Qb6 {[%emt 0:02:26]} 30. Rd4 {[%emt 0:02:05]} f6 {[%emt 0:01:34]} 31. a4 {[%emt 0:02:07]} Qc7 {[%emt 0:00:26]} 32. a5 {[%emt 0:02:47]} Rc1 {[%emt 0:02:34]} 33. Qd2 {[%emt 0:03:35]} Rxd1+ {[%emt 0:01:37]} 34. Qxd1 {[%emt 0:00:01]} b6 {[%emt 0:00:30]} 35. axb6 {[%emt 0:00:48]} Qxb6 {[%emt 0:00:05]} 36. Kh1 {[%emt 0:00:20]} Rb5 {[%emt 0:00:23]} 37. Bf1 {[%emt 0:07:28]} Rxb4 {[%emt 0:00:56]} 38. Rxb4 {[%emt 0:00:01]} Qxb4 {[%emt 0:00:07]} 39. Qg4 {[%emt 0:00:13]} g5 {[%emt 0:04:09]} 40. Bxa6 {[%emt 0:00:50]} Bc6 {[%emt 0:00:26]} 41. Bd3 {[%emt 0:02:14]} d5 {[%emt 0:00:25]} 42. Qe2 {[%emt 0:02:54]} dxe4 {[%emt 0:00:08]} 43. Bc2 {[%emt 0:00:22]} Qc5 {[%emt 0:02:31]} 44. Kg2 {[%emt 0:03:19]} e3+ {[%emt 0:01:29]} 45. Kh3 {[%emt 0:00:54]} h5 {[%emt 0:00:18]} 46. Bd3 {[%emt 0:00:39]} Qd4 {[%emt 0:00:39]} 0-1

[Event "26th Abu Dhabi Master 2019"]
[Site "Abu Dhabi"]
[Date "2019.08.07"]
[Round "6.12"]
[White "Zubov, Alexander"]
[Black "Idani, Pouya"]
[Result "1-0"]
[ECO "B53"]
[WhiteElo "2601"]
[BlackElo "2595"]
[Annotator "ChessBase"]
[PlyCount "99"]
[EventDate "2019.08.02"]
[EventType "swiss"]
[EventCountry "UAE"]
[SourceTitle "playchess.com"]
[Source "ChessBase"]
[SourceQuality "1"]
[TimeControl "5400+30"]

1. e4 {[%emt 0:00:00]} c5 {[%emt 0:00:00]} 2. Nf3 {[%emt 0:00:00]} d6 {[%emt 0:00:08]} 3. d4 {[%emt 0:00:04]} cxd4 {[%emt 0:00:07]} 4. Qxd4 {[%emt 0:00:08]} Nf6 {[%emt 0:00:12]} 5. h3 {[%emt 0:06:03]} Nc6 {[%emt 0:02:14]} 6. Qe3 {[%emt 0:00:18]} g6 {[%emt 0:00:05]} 7. Nc3 {[%emt 0:02:22]} Bg7 {[%emt 0:00:24]} 8. Bc4 {[%emt 0:04:04]} O-O {[%emt 0:02:17]} 9. O-O {[%emt 0:00:07]} Na5 {[%emt 0:09:52]} 10. Be2 {[%emt 0:09:32]} Qc7 {[%emt 0:02:14]} 11. Rd1 {[%emt 0:01:39]} Nc4 {[%emt 0:06:15]} 12. Qd3 {[%emt 0:05:45]} Be6 {[%emt 0:02:08]} 13. b3 {[%emt 0:21:32]} Na5 {[%emt 0:07:53]} 14. Bd2 {[%emt 0:02:45]} a6 {[%emt 0:04:08]} 15. Rac1 {[%emt 0:04:45]} Nc6 {[%emt 0:10:43]} 16. Nd5 {[%emt 0:00:21]} Qd8 {[%emt 0:00:05]} 17. c4 {[%emt 0:00:28]} Nd7 {[%emt 0:01:14]} 18. Bg5 {[%emt 0:01:53]} h6 {[%emt 0:03:08]} 19. Be3 {[%emt 0:03:46]} Qa5 {[%emt 0:01:34]} 20. Qb1 {[%emt 0:01:44]} Rfc8 {[%emt 0:01:33]} 21. Rd2 {[%emt 0:05:18]} Qd8 {[%emt 0:00:31]} 22. b4 {[%emt 0:07:56]} a5 {[%emt 0:01:25]} 23. b5 {[%emt 0:00:30]} Bxd5 {[%emt 0:04:35]} 24. Rxd5 {[%emt 0:00:08]} Ncb8 {[%emt 0:07:39]} 25. c5 {[%emt 0:01:56]} dxc5 {[%emt 0:00:08]} 26. Rcxc5 {[%emt 0:04:03]} Rxc5 {[%emt 0:04:35]} 27. Bxc5 {[%emt 0:00:03]} Qe8 {[%emt 0:00:09]} 28. Be3 {[%emt 0:07:22]} Nf8 {[%emt 0:03:24]} 29. Bf4 {[%emt 0:04:35]} Ne6 {[%emt 0:06:24]} 30. Qd1 {[%emt 0:01:01]} Nc6 {[%emt 0:01:32]} 31. Be3 {[%emt 0:01:10]} Ncd8 {[%emt 0:06:14]} 32. Bb6 {[%emt 0:01:16]} Nf4 {[%emt 0:00:06]} 33. Rd2 {[%emt 0:00:53]} Nxe2+ {[%emt 0:00:48]} 34. Rxe2 {[%emt 0:01:08]} Ne6 {[%emt 0:00:12]} 35. a4 {[%emt 0:00:06]} Bc3 {[%emt 0:02:51]} 36. Qc1 {[%emt 0:01:08]} Bb4 {[%emt 0:01:48]} 37. Qxh6 {[%emt 0:00:07]} Qd7 {[%emt 0:00:09]} 38. Qc1 {[%emt 0:00:51]} Qd6 {[%emt 0:01:31]} 39. Be3 {[%emt 0:00:19]} Rd8 {[%emt 0:00:54]} 40. Rc2 {[%emt 0:00:43]} Ba3 {[%emt 0:01:28]} 41. Qd2 {[%emt 0:01:46]} Qb4 {[%emt 0:00:45]} 42. Qxb4 {[%emt 0:00:02]} axb4 {[%emt 0:00:08]} 43. Nd2 {[%emt 0:00:02]} Rd3 {[%emt 0:01:35]} 44. Kf1 {[%emt 0:00:23]} Nd4 {[%emt 0:01:44]} 45. Bxd4 {[%emt 0:01:20]} Rxd4 {[%emt 0:00:05]} 46. Ke2 {[%emt 0:00:17]} b3 {[%emt 0:00:10]} 47. Rc4 {[%emt 0:00:09]} Rxc4 {[%emt 0:03:44]} 48. Nxc4 {[%emt 0:00:01]} Bc5 {[%emt 0:00:09]} 49. f3 {[%emt 0:00:08]} Kf8 {[%emt 0:00:30]} 50. Kd3 {[%emt 0:00:05]} 1-0

[Event "26th Abu Dhabi Master 2019"]
[Site "Abu Dhabi"]
[Date "2019.08.07"]
[Round "6.13"]
[White "Antipov, Mikhail Al."]
[Black "Praggnanandhaa R"]
[Result "1-0"]
[ECO "B31"]
[WhiteElo "2582"]
[BlackElo "2540"]
[Annotator "ChessBase"]
[PlyCount "95"]
[EventDate "2019.08.02"]
[EventType "swiss"]
[EventCountry "UAE"]
[SourceTitle "playchess.com"]
[Source "ChessBase"]
[SourceQuality "1"]
[TimeControl "5400+30"]

1. e4 {[%emt 0:00:00]} c5 {[%emt 0:00:04]} 2. Nf3 {[%emt 0:00:00]} Nc6 {[%emt 0:00:06]} 3. Bb5 {[%emt 0:00:00]} g6 {[%emt 0:00:05]} 4. Bxc6 {[%emt 0:00:00]} bxc6 {[%emt 0:00:05]} 5. O-O {[%emt 0:00:01]} Bg7 {[%emt 0:00:04]} 6. Re1 {[%emt 0:00:16]} Nh6 {[%emt 0:00:28]} 7. c3 {[%emt 0:00:22]} O-O {[%emt 0:00:15]} 8. h3 {[%emt 0:00:06]} f5 {[%emt 0:00:20]} 9. e5 {[%emt 0:00:07]} Nf7 {[%emt 0:00:04]} 10. d4 {[%emt 0:00:11]} cxd4 {[%emt 0:00:06]} 11. cxd4 {[%emt 0:00:07]} Bb7 {[%emt 0:00:14]} 12. Na3 {[%emt 0:00:25]} c5 {[%emt 0:00:21]} 13. dxc5 {[%emt 0:00:07]} Rc8 {[%emt 0:00:05]} 14. Be3 {[%emt 0:00:08]} Bxf3 {[%emt 0:00:08]} 15. Qxf3 {[%emt 0:00:07]} Nxe5 {[%emt 0:00:05]} 16. Qd1 {[%emt 0:00:09]} d5 {[%emt 0:06:56]} 17. cxd6 {[%emt 0:04:27]} Qxd6 {[%emt 0:07:55]} 18. Qb3+ {[%emt 0:21:52]} Kh8 {[%emt 0:04:57]} 19. Bxa7 {[%emt 0:02:24]} Qa6 {[%emt 0:13:33]} 20. Bd4 {[%emt 0:19:22]} Nf3+ {[%emt 0:03:05]} 21. Qxf3 {[%emt 0:00:10]} Bxd4 {[%emt 0:00:07]} 22. Qe2 {[%emt 0:00:21]} Qxe2 {[%emt 0:21:25]} 23. Rxe2 {[%emt 0:00:06]} Rb8 {[%emt 0:00:49]} 24. Rb1 {[%emt 0:01:47]} Rfc8 {[%emt 0:04:30]} 25. Rc2 {[%emt 0:06:28]} e5 {[%emt 0:03:23]} 26. b4 {[%emt 0:06:05]} f4 {[%emt 0:04:00]} 27. b5 {[%emt 0:06:29]} Rxc2 {[%emt 0:05:59]} 28. Nxc2 {[%emt 0:00:01]} Bb6 {[%emt 0:00:10]} 29. Kf1 {[%emt 0:06:18]} e4 {[%emt 0:10:14]} 30. Ke2 {[%emt 0:05:47]} Rd8 {[%emt 0:00:38]} 31. Rb4 {[%emt 0:02:28]} Rc8 {[%emt 0:01:03]} 32. Ne1 {[%emt 0:04:27]} Re8 {[%emt 0:07:36]} 33. Rc4 {[%emt 0:04:04]} f3+ {[%emt 0:02:54]} 34. gxf3 {[%emt 0:01:56]} exf3+ {[%emt 0:00:01]} 35. Kf1 {[%emt 0:00:12]} Re2 {[%emt 0:00:18]} 36. Rc2 {[%emt 0:00:04]} Re4 {[%emt 0:00:04]} 37. a3 {[%emt 0:00:27]} Ra4 {[%emt 0:02:41]} 38. Rc3 {[%emt 0:00:48]} Ra5 {[%emt 0:00:07]} 39. Rb3 {[%emt 0:00:11]} Kg7 {[%emt 0:00:03]} 40. Nxf3 {[%emt 0:00:26]} Kf6 {[%emt 0:00:02]} 41. Nd2 {[%emt 0:00:39]} Ra4 {[%emt 0:00:07]} 42. Rc3 {[%emt 0:01:14]} Ke7 {[%emt 0:01:44]} 43. Rc6 {[%emt 0:01:02]} Bd8 {[%emt 0:00:19]} 44. Nc4 {[%emt 0:00:42]} Kd7 {[%emt 0:00:31]} 45. Ke2 {[%emt 0:00:22]} Ra8 {[%emt 0:00:18]} 46. Ne5+ {[%emt 0:00:47]} Ke7 {[%emt 0:00:14]} 47. Ra6 {[%emt 0:00:13]} Rc8 {[%emt 0:00:04]} 48. Nc6+ {[%emt 0:00:07]} 1-0

[Event "26th Abu Dhabi Master 2019"]
[Site "Abu Dhabi"]
[Date "2019.08.07"]
[Round "6.14"]
[White "Petrov, Nikita"]
[Black "Istratescu, Andrei"]
[Result "1/2-1/2"]
[ECO "A35"]
[WhiteElo "2600"]
[BlackElo "2555"]
[Annotator "ChessBase"]
[PlyCount "76"]
[EventDate "2019.08.02"]
[EventType "swiss"]
[EventCountry "UAE"]
[SourceTitle "playchess.com"]
[Source "ChessBase"]
[SourceQuality "1"]
[TimeControl "5400+30"]

1. c4 {[%emt 0:00:00]} c5 {[%emt 0:02:23]} 2. Nc3 {[%emt 0:00:16]} Nc6 {[%emt 0:00:25]} 3. Nf3 {[%emt 0:00:10]} e5 {[%emt 0:00:05]} 4. e3 {[%emt 0:02:21]} f5 {[%emt 0:04:55]} 5. d4 {[%emt 0:02:16]} e4 {[%emt 0:00:54]} 6. d5 {[%emt 0:00:15]} exf3 {[%emt 0:00:04]} 7. dxc6 {[%emt 0:00:07]} dxc6 {[%emt 0:00:03]} 8. Qxd8+ {[%emt 0:01:30]} Kxd8 {[%emt 0:00:17]} 9. gxf3 {[%emt 0:00:08]} Nf6 {[%emt 0:02:44]} 10. b3 {[%emt 0:01:09]} g6 {[%emt 0:03:19]} 11. Bb2 {[%emt 0:03:39]} Bg7 {[%emt 0:01:39]} 12. O-O-O+ {[%emt 0:04:05]} Ke7 {[%emt 0:01:19]} 13. h4 {[%emt 0:03:32]} Be6 {[%emt 0:07:44]} 14. Be2 {[%emt 0:02:12]} Rad8 {[%emt 0:05:04]} 15. Rdg1 {[%emt 0:07:13]} Bf7 {[%emt 0:09:26]} 16. f4 {[%emt 0:05:47]} h5 {[%emt 0:09:25]} 17. Na4 {[%emt 0:14:56]} b6 {[%emt 0:00:14]} 18. Be5 {[%emt 0:07:23]} Rhg8 {[%emt 0:04:15]} 19. f3 {[%emt 0:02:03]} Nd7 {[%emt 0:06:15]} 20. Bxg7 {[%emt 0:00:50]} Rxg7 {[%emt 0:00:05]} 21. Rd1 {[%emt 0:04:48]} Rgg8 {[%emt 0:00:34]} 22. Rhe1 {[%emt 0:00:16]} Nf6 {[%emt 0:02:52]} 23. Nb2 {[%emt 0:00:48]} Rxd1+ {[%emt 0:00:26]} 24. Rxd1 {[%emt 0:00:33]} Rd8 {[%emt 0:01:32]} 25. Nd3 {[%emt 0:01:44]} Nd7 {[%emt 0:00:14]} 26. Ne5 {[%emt 0:11:27]} Nxe5 {[%emt 0:00:20]} 27. fxe5 {[%emt 0:00:28]} Rxd1+ {[%emt 0:00:44]} 28. Kxd1 {[%emt 0:00:06]} Ke6 {[%emt 0:00:36]} 29. f4 {[%emt 0:00:06]} Kd7 {[%emt 0:02:53]} 30. Kd2 {[%emt 0:00:19]} Be6 {[%emt 0:01:22]} 31. Bd3 {[%emt 0:01:41]} Kc7 {[%emt 0:01:33]} 32. Kc3 {[%emt 0:01:56]} a5 {[%emt 0:00:31]} 33. e4 {[%emt 0:02:34]} fxe4 {[%emt 0:07:15]} 34. Bxe4 {[%emt 0:00:04]} Bf5 {[%emt 0:00:02]} 35. Kd3 {[%emt 0:01:11]} Kd7 {[%emt 0:00:40]} 36. Ke3 {[%emt 0:00:20]} Kc7 {[%emt 0:00:09]} 37. Bxf5 {[%emt 0:00:05]} gxf5 {[%emt 0:00:06]} 38. Kd3 {[%emt 0:00:02]} Kd7 {[%emt 0:00:44]} 1/2-1/2